bitfinex-derivatives/quotes_SOLF0:USTF0_20250816
["timestamp","ask_amount","ask_price","bid_price","bid_amount"]
[1755312043460,135.87310034,187.35,187.26,3.14965063]
[1755312043662,4.28796571,187.34,187.26,3.14965063]
[1755312043856,4.28796571,187.33,187.26,3.14965063]
[1755312044057,4.28796571,187.32,187.26,3.14965063]
[1755312044359,4.28796571,187.31,187.26,3.14965063]
[1755312044563,4.28914995,187.3,187.21,3.14965063]
[1755312044863,4.28914995,187.29,187.21,3.14965063]
[1755312045059,4.28914995,187.28,187.21,3.14965063]
[1755312045263,4.28914995,187.27,187.21,3.14965063]
[1755312045457,4.41310034,187.32,187.21,3.14965063]
[1755312045657,4.2889848,187.31,187.21,3.14965063]
[1755312045857,4.2889848,187.3,187.21,3.14965063]
[1755312046153,4.2889848,187.29,187.21,3.14965063]
[1755312046355,4.2889848,187.28,187.21,3.14965063]
[1755312046559,4.29217673,187.27,187.21,3.14965063]
[1755312046755,4.41310034,187.31,187.21,3.14965063]
[1755312046961,4.29199214,187.3,187.18,3.14965063]
[1755312047156,4.29199214,187.29,187.18,3.14965063]
[1755312047360,4.29199214,187.28,187.18,3.14965063]
[1755312047560,4.29199214,187.27,187.18,3.14965063]
[1755312047760,4.29199214,187.26,187.18,3.14965063]
[1755312047958,4.29199214,187.25,187.18,3.14965063]
[1755312048160,4.41310034,187.29,187.18,3.14965063]
[1755312048467,4.29815579,187.28,187.18,3.14965063]
[1755312048665,4.29815579,187.27,187.18,3.14965063]
[1755312048865,4.29815579,187.26,187.18,3.14965063]
[1755312049058,4.29815579,187.25,187.18,3.14965063]
[1755312049261,4.2996329,187.24,187.18,3.14965063]
[1755312049461,4.44469034,187.29,187.18,3.14965063]
[1755312049660,4.29963144,187.28,187.18,3.14965063]
[1755312049966,4.29963144,187.27,187.18,3.14965063]
[1755312050261,4.29963144,187.26,187.18,3.14965063]
[1755312050465,4.29963144,187.25,187.18,3.14965063]
[1755312050662,4.29963144,187.24,187.18,3.14965063]
[1755312050858,4.2999964,187.23,187.16,6.20965063]
[1755312051165,4.2999964,187.22,187.16,3.06]
[1755312051362,3.14965063,187.26,187.16,3.06]
[1755312051363,4.2999964,187.21,187.16,3.06]
[1755312051562,4.2999964,187.2,187.16,3.06]
[1755312051762,4.44469034,187.24,187.16,3.06]
[1755312051963,4.29791615,187.23,187.16,3.06]
[1755312052162,4.29791615,187.22,187.16,3.06]
[1755312052364,4.29766019,187.21,187.16,3.06]
[1755312052562,0.03904123,187.22,187.16,3.06]
[1755312052770,0.03904123,187.22,187.17,0.03386751]
[1755312053769,4.29731346,187.21,187.17,0.03386751]
[1755312054071,0.03904123,187.22,187.17,0.03386751]
[1755312054267,4.29703671,187.21,187.17,0.03386751]
[1755312054471,0.03904123,187.22,187.17,0.03386751]
[1755312054674,4.29699591,187.21,187.17,0.03386751]
[1755312054873,4.29699591,187.2,187.17,0.03386751]
[1755312055072,0.03904123,187.22,187.17,0.03386751]
[1755312055273,4.29620836,187.21,187.17,0.03386751]
[1755312055477,0.03904123,187.22,187.17,0.03386751]
[1755312055773,4.29620836,187.21,187.17,0.03386751]
[1755312055971,0.03904123,187.22,187.17,0.03386751]
[1755312056177,4.29620836,187.21,187.17,0.03386751]
[1755312056373,0.03904123,187.22,187.17,0.03386751]
[1755312056578,4.29611202,187.21,187.17,0.03386751]
[1755312056778,0.03904123,187.22,187.17,0.03386751]
[1755312056980,4.29615933,187.21,187.17,0.03386751]
[1755312057174,4.29547972,187.2,187.17,0.03386751]
[1755312057375,4.29522503,187.19,187.17,0.03386751]
[1755312057577,0.03904123,187.22,187.17,0.03386751]
[1755312057879,4.29500376,187.21,187.17,0.03386751]
[1755312058077,4.29500376,187.2,187.17,0.03386751]
[1755312058278,4.29500376,187.19,187.17,0.03386751]
[1755312058579,0.03904123,187.22,187.17,0.03386751]
[1755312058780,4.29386861,187.21,187.17,0.03386751]
[1755312058978,4.29386861,187.2,187.17,0.03386751]
[1755312059180,4.29386861,187.19,187.17,0.03386751]
[1755312059383,0.03904123,187.22,187.17,0.03386751]
[1755312059575,4.29301232,187.21,187.17,0.03386751]
[1755312059775,4.29301232,187.2,187.17,0.03386751]
[1755312059974,4.29301232,187.19,187.17,0.03386751]
[1755312060171,0.03904123,187.22,187.17,0.03386751]
[1755312060375,4.29281495,187.21,187.17,0.03386751]
[1755312060579,4.29281495,187.2,187.17,0.03386751]
[1755312060775,4.29281495,187.19,187.17,0.03386751]
[1755312061078,0.03904123,187.22,187.17,0.03386751]
[1755312061282,0.03904123,187.22,187.19,3.14965063]
[1755312061670,0.03904123,187.22,187.17,0.03386751]
[1755312063781,4.29332566,187.21,187.17,0.03386751]
[1755312063979,0.03904123,187.22,187.17,0.03386751]
[1755312066677,4.29405115,187.21,187.17,0.03386751]
[1755312066977,4.29395659,187.2,187.17,0.03386751]
[1755312067277,0.03904123,187.22,187.17,0.03386751]
[1755312067483,4.2941142,187.21,187.17,0.03386751]
[1755312067783,4.2941142,187.2,187.17,0.03386751]
[1755312067983,4.2941142,187.19,187.17,0.03386751]
[1755312068185,0.03904123,187.22,187.17,0.03386751]
[1755312068381,4.29315561,187.21,187.17,0.03386751]
[1755312068581,4.29315561,187.2,187.17,0.03386751]
[1755312068781,4.29315561,187.19,187.17,0.03386751]
[1755312068976,4.29373812,187.18,187.17,0.03386751]
[1755312072197,4.29373812,187.18,187.16,3.06]
[1755312072384,0.03904123,187.22,187.16,3.06]
[1755312072385,7.44338875,187.17,187.16,3.06]
[1755312072584,7.44338875,187.17,187.03,3.14965063]
[1755312072786,4.29373812,187.16,187.03,3.14965063]
[1755312072979,4.29373812,187.15,186.99,113.99758968]
[1755312073179,3.14965063,187.17,187.06,3.14965063]
[1755312073388,4.28967395,187.16,187.06,3.14965063]
[1755312073684,0.03606356,187.09,187.06,3.14965063]
[1755312073888,3.14965063,187.17,187.06,3.14965063]
[1755312074084,4.28971467,187.16,187.06,3.14965063]
[1755312074386,0.03875147,187.09,187.03,3.14965063]
[1755312074589,3.14965063,187.17,187.03,3.14965063]
[1755312074786,4.2886078,187.16,187.03,3.14965063]
[1755312074991,0.03853434,187.08,187.03,3.14965063]
[1755312075484,3.14965063,187.17,187.03,3.14965063]
[1755312075683,0.0336858,187.07,187.03,3.14965063]
[1755312076084,3.14965063,187.16,187.03,3.14965063]
[1755312076284,4.28689608,187.15,187.03,3.14965063]
[1755312076484,0.03709947,187.07,187.03,3.14965063]
[1755312076782,3.14965063,187.16,187.03,3.14965063]
[1755312076989,0.03693424,187.07,187.03,3.14965063]
[1755312077387,3.14965063,187.15,187.03,3.14965063]
[1755312077589,4.28850465,187.14,187.03,3.14965063]
[1755312077783,0.03578934,187.07,187.03,3.14965063]
[1755312078293,0.03578934,187.07,187.06,3.14965063]
[1755312082394,139.39434097,187.2,187.06,3.14965063]
[1755312082689,4.282931,187.19,187.06,3.14965063]
[1755312082886,4.282931,187.18,187.06,3.14965063]
[1755312083088,3.14965063,187.2,187.06,3.14965063]
[1755312083290,4.28343745,187.19,187.06,3.14965063]
[1755312083488,4.28343745,187.18,187.07,5.3412]
[1755312083688,3.14965063,187.2,187.06,3.14965063]
[1755312083887,4.28343745,187.19,187.06,3.14965063]
[1755312084094,4.28343745,187.18,187.06,3.14965063]
[1755312084391,136.20469034,187.22,187.06,3.14965063]
[1755312084692,7.43313274,187.21,187.06,3.14965063]
[1755312084889,3.14965063,187.18,187.04,3.14965063]
[1755312085093,3.14965063,187.15,187.04,3.14965063]
[1755312085292,4.28348211,187.14,187.04,3.14965063]
[1755312085492,3.14965063,187.15,187.04,3.14965063]
[1755312085693,4.28219605,187.14,187.01,3.14965063]
[1755312085893,4.28219605,187.13,187.01,3.14965063]
[1755312086093,3.14965063,187.15,187.01,3.14965063]
[1755312086295,4.28097634,187.14,187.01,3.14965063]
[1755312086496,4.28097634,187.13,187.01,3.14965063]
[1755312086794,3.14965063,187.15,187.01,3.14965063]
[1755312086995,4.28138641,187.14,187.01,3.14965063]
[1755312087194,4.28138641,187.13,187.01,3.14965063]
[1755312087496,4.28138641,187.12,187.01,3.14965063]
[1755312087698,3.14965063,187.15,187.01,3.14965063]
[1755312087898,4.28158364,187.14,187.01,8.49265063]
[1755312088087,4.28158364,187.13,187.01,8.49265063]
[1755312088290,4.28158364,187.13,186.94,231.49043153]
[1755312088291,4.28158364,187.12,187.04,3.14965063]
[1755312088488,7.59434097,187.18,187.04,3.14965063]
[1755312088692,4.28227229,187.17,187.04,3.14965063]
[1755312088892,4.28227229,187.16,187.04,3.14965063]
[1755312089094,4.28227229,187.15,187.04,3.14965063]
[1755312089295,4.28227229,187.14,187.04,3.14965063]
[1755312089606,4.28227229,187.13,187.04,3.14965063]
[1755312089899,4.28227229,187.12,187.04,3.14965063]
[1755312090200,4.44469034,187.16,187.04,3.14965063]
[1755312090400,4.28347182,187.15,187.04,3.14965063]
[1755312090599,4.28347182,187.14,187.04,3.14965063]
[1755312090803,4.44469034,187.16,187.04,3.14965063]
[1755312090804,4.28347182,187.13,187.04,3.14965063]
[1755312091001,4.28347182,187.12,187.04,3.14965063]
[1755312091201,4.44469034,187.16,187.04,3.14965063]
[1755312091415,4.28374393,187.15,187.04,3.14965063]
[1755312091601,4.28374393,187.14,187.04,3.14965063]
[1755312091800,4.28374393,187.13,187.04,3.14965063]
[1755312091998,4.28374393,187.12,187.04,3.14965063]
[1755312092300,4.44469034,187.16,187.04,3.14965063]
[1755312092605,4.28403189,187.15,187.04,3.14965063]
[1755312092801,4.28403189,187.14,187.03,3.14965063]
[1755312093002,4.28403189,187.13,187.03,3.14965063]
[1755312093298,4.28403189,187.12,187.03,3.14965063]
[1755312093503,4.44469034,187.16,187.03,3.14965063]
[1755312093702,4.28464523,187.15,187.03,3.14965063]
[1755312093900,4.28464523,187.14,187.03,3.14965063]
[1755312094100,4.28464523,187.13,187.03,3.14965063]
[1755312094297,4.28464523,187.12,187.03,3.14965063]
[1755312094499,4.28464523,187.11,187.03,3.14965063]
[1755312094695,4.28464523,187.1,187.03,3.14965063]
[1755312094898,4.44469034,187.15,187.03,3.14965063]
[1755312095097,4.28540245,187.14,187.03,3.14965063]
[1755312095298,4.44469034,187.15,187.03,3.14965063]
[1755312095299,4.28540245,187.13,187.03,3.14965063]
[1755312095601,4.28540245,187.12,187.03,3.14965063]
[1755312095800,4.44469034,187.16,187.03,3.14965063]
[1755312096001,4.28629056,187.15,187.03,3.14965063]
[1755312096203,4.28629056,187.14,187.07,3.0]
[1755312096399,4.44469034,187.16,187.07,3.0]
[1755312096400,4.28629056,187.13,187.07,3.0]
[1755312096605,3.07,187.11,187.07,3.0]
[1755312098205,3.07,187.11,187.05,3.0]
[1755312100109,4.44469034,187.18,187.06,3.14965063]
[1755312100302,3.07,187.13,187.07,3.0]
[1755312108505,3.07,187.13,187.06,3.14965063]
[1755312108708,3.07,187.13,187.07,0.21]
[1755312110405,3.07,187.13,187.06,3.14965063]
[1755312111010,3.07,187.13,187.06,3.35965063]
[1755312112314,3.06,187.11,187.06,3.14965063]
[1755312112613,3.06,187.11,187.07,0.21]
[1755312114416,3.06,187.11,187.06,3.14965063]
[1755312114717,3.06,187.11,187.08,0.21]
[1755312116917,3.06,187.15,187.08,0.21]
[1755312117113,3.06,187.13,187.08,0.21]
[1755312117314,3.06,187.11,187.08,0.21]
[1755312117518,3.06,187.11,187.07,0.21]
[1755312118109,3.06,187.14,187.08,0.21]
[1755312118314,3.06,187.12,187.08,0.21]
[1755312118518,3.06,187.12,187.09,3.14965063]
[1755312118713,3.06,187.12,187.11,0.21]
[1755312119012,5.37493533,187.18,187.1,0.21]
[1755312119220,3.06,187.11,187.1,0.21]
[1755312119812,3.06,187.11,187.09,3.14965063]
[1755312120009,3.06,187.17,187.09,3.14965063]
[1755312120210,3.06,187.15,187.07,3.14965063]
[1755312120412,4.30834225,187.14,187.07,3.14965063]
[1755312120619,4.30834225,187.13,187.07,3.35965063]
[1755312120824,3.06,187.11,187.08,0.21]
[1755312121920,3.06,187.16,187.1,3.35965063]
[1755312122110,3.06,187.19,187.14,0.21]
[1755312122313,3.06,187.19,187.17,0.21]
[1755312122715,3.06,187.19,187.16,3.18450475]
[1755312122920,0.03555941,187.2,187.18,0.21]
[1755312123119,3.09555941,187.2,187.18,0.21]
[1755312123314,3.06,187.2,187.18,0.21]
[1755312123515,3.06,187.19,187.16,3.35965063]
[1755312123713,0.92983487,187.27,187.16,3.14965063]
[1755312124019,3.06,187.25,187.17,0.21]
[1755312124220,3.06,187.23,187.17,0.21]
[1755312124816,3.06,187.25,187.19,3.14965063]
[1755312125017,3.06,187.23,187.19,3.14965063]
[1755312125220,131.68,187.3,187.23,0.21]
[1755312125414,3.06,187.28,187.19,3.14965063]
[1755312125619,3.06,187.26,187.19,3.14965063]
[1755312126521,3.06,187.26,187.23,0.21]
[1755312126726,0.03668084,187.24,187.23,0.21]
[1755312126927,3.09668084,187.24,187.22,3.14965063]
[1755312127121,3.06,187.24,187.22,3.35965063]
[1755312128727,3.06,187.23,187.22,3.14965063]
[1755312130427,3.06,187.23,187.19,3.14965063]
[1755312131028,3.06,187.23,187.19,3.35965063]
[1755312135433,3.06,187.23,187.19,3.14965063]
[1755312136833,3.06,187.23,187.19,3.36965063]
[1755312137029,3.06,187.23,187.2,0.22]
[1755312137228,3.06,187.31,187.2,0.22]
[1755312137430,3.06,187.29,187.19,3.14965063]
[1755312137636,3.06,187.27,187.19,3.14965063]
[1755312137835,3.06,187.27,187.16,3.14965063]
[1755312138034,3.06,187.25,187.16,3.14965063]
[1755312139031,3.06,187.25,187.16,3.36965063]
[1755312139240,3.06,187.25,187.17,0.22]
[1755312140136,3.06,187.25,187.19,3.14965063]
[1755312140639,3.14965063,187.32,187.19,8.48725063]
[1755312140940,2.94,187.23,187.21,0.22]
[1755312141138,2.94,187.22,187.21,0.22]
[1755312141834,2.94,187.22,187.19,3.14965063]
[1755312142033,2.94,187.22,187.2,0.22]
[1755312142436,2.94,187.21,187.2,0.22]
[1755312144240,2.94,187.21,187.16,0.22]
[1755312144441,2.94,187.21,187.16,3.14965063]
[1755312145040,2.94,187.21,187.16,3.36965063]
[1755312145737,2.94,187.21,187.16,3.14965063]
[1755312148442,2.94,187.21,187.13,3.14965063]
[1755312150635,2.94,187.21,187.12,0.22]
[1755312150840,2.94,187.21,187.12,3.36965063]
[1755312151146,2.94,187.21,187.12,3.14965063]
[1755312151648,4.28320585,187.2,187.12,3.14965063]
[1755312151949,2.94,187.19,187.12,3.14965063]
[1755312152446,2.94,187.19,187.09,74.07638828]
[1755312152842,4.28374519,187.18,187.09,74.07638828]
[1755312153040,2.94,187.17,187.09,74.07638828]
[1755312153447,2.94,187.17,187.09,74.29638828]
[1755312153942,2.94,187.17,187.13,3.14965063]
[1755312154349,2.94,187.17,187.15,0.22]
[1755312154550,2.94,187.26,187.16,3.36965063]
[1755312154841,7.57780337,187.28,187.16,3.36965063]
[1755312154842,2.94,187.24,187.16,8.48835063]
[1755312155046,2.94,187.24,187.2,0.22]
[1755312155246,7.57780337,187.31,187.19,3.14965063]
[1755312155448,2.94,187.23,187.19,3.14965063]
[1755312155651,2.94,187.23,187.16,3.36965063]
[1755312156149,2.94,187.23,187.17,5.3384]
[1755312156346,2.94,187.23,187.16,3.36965063]
[1755312156550,2.94,187.23,187.16,8.70835063]
[1755312157048,2.94,187.23,187.17,0.22]
[1755312157254,2.94,187.29,187.2,0.22]
[1755312157454,2.94,187.27,187.2,0.22]
[1755312157751,2.94,187.27,187.2,5.5575]
[1755312157950,2.94,187.27,187.2,0.22]
[1755312158150,2.94,187.27,187.22,3.36965063]
[1755312158545,2.94,187.27,187.22,3.14965063]
[1755312160559,2.94,187.27,187.19,3.14965063]
[1755312161148,4.29693358,187.26,187.19,3.14965063]
[1755312161356,2.94,187.24,187.19,3.14965063]
[1755312162357,2.94,187.23,187.19,3.14965063]
[1755312162566,2.94,187.23,187.21,0.22]
[1755312162855,4.42815274,187.3,187.2,0.22]
[1755312162856,2.94,187.22,187.2,0.22]
[1755312163250,2.94,187.22,187.19,3.14965063]
[1755312163251,7.57780337,187.31,187.19,8.48745063]
[1755312163456,2.94,187.29,187.2,0.22]
[1755312163656,2.94,187.27,187.2,0.22]
[1755312165060,2.94,187.31,187.23,0.22]
[1755312165260,2.94,187.29,187.23,0.22]
[1755312165561,2.94,187.27,187.23,0.22]
[1755312166460,135.90815274,187.32,187.23,0.22]
[1755312166663,2.94,187.25,187.23,0.22]
[1755312166862,2.94,187.3,187.23,0.22]
[1755312167057,2.94,187.28,187.23,0.22]
[1755312167262,2.94,187.28,187.25,3.14965063]
[1755312167461,2.94,187.27,187.25,3.36965063]
[1755312167758,2.94,187.32,187.26,0.22]
[1755312167953,4.42815274,187.36,187.26,3.14965063]
[1755312168265,2.94,187.34,187.26,3.14965063]
[1755312168458,2.96,187.32,187.26,3.14965063]
[1755312168655,2.96,187.3,187.26,3.14965063]
[1755312172759,5.35749099,187.36,187.26,3.35965063]
[1755312172966,2.96,187.34,187.27,0.21]
[1755312173470,0.03574109,187.33,187.27,5.3356]
[1755312173765,2.96,187.32,187.28,0.21]
[1755312173961,0.03574109,187.33,187.28,0.21]
[1755312174161,2.96,187.31,187.29,0.21]
[1755312174365,2.96,187.3,187.27,0.21]
[1755312174867,2.96,187.3,187.28,0.21]
[1755312175365,2.96,187.3,187.29,0.21]
[1755312176166,2.96,187.3,187.27,5.3355]
[1755312176367,2.96,187.3,187.28,0.21]
[1755312176867,2.96,187.32,187.26,8.69545063]
[1755312177969,2.96,187.32,187.27,0.21]
[1755312178369,2.96,187.32,187.26,3.14965063]
[1755312178569,2.96,187.32,187.27,0.21]
[1755312180466,2.96,187.32,187.26,3.14965063]
[1755312180671,2.96,187.32,187.2,3.35965063]
[1755312180868,6.10965063,187.3,187.11,99.0]
[1755312181066,3.14965063,187.27,187.16,0.21]
[1755312181370,2.96,187.26,187.16,0.21]
[1755312181968,2.96,187.26,187.16,5.5487]
[1755312182170,2.96,187.26,187.16,0.21]
[1755312182870,4.29416715,187.25,187.15,3.14965063]
[1755312183071,2.96,187.26,187.15,3.14965063]
[1755312183270,2.96,187.24,187.15,3.14965063]
[1755312184876,2.96,187.24,187.15,3.35965063]
[1755312186678,2.96,187.24,187.15,3.14965063]
[1755312187477,2.96,187.24,187.15,3.35965063]
[1755312189980,2.96,187.24,187.15,8.69855063]
[1755312190175,2.96,187.24,187.15,8.48855063]
[1755312190376,2.96,187.24,187.16,0.21]
[1755312192080,2.96,187.24,187.09,131.4]
[1755312192283,2.96,187.22,187.12,3.14965063]
[1755312192482,2.96,187.22,187.13,0.21]
[1755312196286,2.96,187.22,187.16,0.21]
[1755312198588,2.96,187.22,187.16,5.5487]
[1755312198788,2.92,187.29,187.19,0.22]
[1755312198985,2.92,187.27,187.19,0.22]
[1755312199189,2.92,187.25,187.19,0.22]
[1755312199384,2.92,187.25,187.18,3.14965063]
[1755312199986,2.92,187.25,187.15,102.36965063]
[1755312200190,2.92,187.25,187.15,3.36965063]
[1755312200587,7.44582679,187.24,187.12,3.36965063]
[1755312200783,2.92,187.22,187.12,3.36965063]
[1755312201185,2.92,187.22,187.13,0.22]
[1755312206803,2.92,187.22,187.14,3.14965063]
[1755312207003,2.92,187.22,187.15,0.22]
[1755312207499,2.92,187.22,187.14,3.14965063]
[1755312207804,2.92,187.22,187.13,0.22]
[1755312210098,2.92,187.22,187.13,5.5595]
[1755312210298,2.92,187.22,187.14,3.36965063]
[1755312211304,2.92,187.22,187.11,3.36965063]
[1755312214005,2.92,187.22,187.12,0.22]
[1755312219305,4.29714761,187.21,187.12,0.22]
[1755312219508,3.14965063,187.24,187.12,0.22]
[1755312219509,2.92,187.2,187.12,0.22]
[1755312220714,2.92,187.2,187.14,3.14965063]
[1755312220914,4.43850933,187.26,187.15,0.22]
[1755312221114,2.92,187.19,187.15,0.22]
[1755312223212,2.92,187.24,187.15,0.22]
[1755312223516,2.92,187.22,187.15,0.22]
[1755312223711,4.30772291,187.21,187.15,0.22]
[1755312224016,2.92,187.2,187.14,8.48885063]
[1755312224215,2.92,187.2,187.15,0.22]
[1755312224416,2.92,187.2,187.16,0.22]
[1755312225316,2.92,187.23,187.15,0.22]
[1755312225513,4.3137414,187.22,187.15,0.22]
[1755312225711,7.2337414,187.21,187.15,0.22]
[1755312225913,4.43850933,187.25,187.16,0.22]
[1755312226216,2.92,187.18,187.16,0.22]
[1755312226615,4.43850933,187.25,187.16,0.22]
[1755312226811,2.92,187.17,187.16,0.22]
[1755312227020,2.92,187.17,187.14,3.14965063]
[1755312227212,2.92,187.17,187.15,0.22]
[1755312227614,2.92,187.17,187.16,0.22]
[1755312231418,4.43850933,187.25,187.14,8.48885063]
[1755312231617,3.12,187.16,187.15,0.21]
[1755312232118,3.12,187.17,187.16,0.21]
[1755312233719,3.12,187.17,187.14,8.48885063]
[1755312233923,3.12,187.24,187.14,8.69885063]
[1755312234125,3.12,187.22,187.14,8.69885063]
[1755312234423,3.12,187.2,187.14,8.69885063]
[1755312237922,3.12,187.2,187.15,0.21]
[1755312240230,3.12,187.2,187.15,5.5489]
[1755312240427,3.12,187.2,187.16,0.21]
[1755312242731,3.12,187.2,187.15,5.3389]
[1755312242930,3.12,187.2,187.15,5.5489]
[1755312243330,3.12,187.2,187.15,0.21]
[1755312243931,3.12,187.2,187.14,3.14965063]
[1755312244134,3.12,187.2,187.14,3.35965063]
[1755312245335,3.12,187.2,187.15,5.339]
[1755312245634,3.12,187.2,187.15,5.549]
[1755312247134,3.12,187.2,187.15,0.21]
[1755312247333,3.12,187.2,187.14,3.14965063]
[1755312247829,3.12,187.2,187.14,8.48885063]
[1755312248135,3.12,187.2,187.14,8.69885063]
[1755312250638,3.12,187.2,187.18,2.02392713]
[1755312257444,7.42746132,187.19,187.18,2.02392713]
[1755312257839,3.12,187.18,187.17,2.02392713]
[1755312267142,3.12,187.18,187.17,2.23392713]
[1755312267443,3.08,187.23,187.17,2.23392713]
[1755312267649,3.08,187.21,187.19,2.02392713]
[1755312267845,7.39258009,187.2,187.19,2.02392713]
[1755312275250,4.46010822,187.27,187.19,2.23392713]
[1755312275552,4.46010822,187.27,187.22,2.02392713]
[1755312275553,3.08,187.25,187.22,2.02392713]
[1755312275752,3.08,187.23,187.22,2.02392713]
[1755312275945,4.31351115,187.23,187.22,2.02392713]
[1755312276148,7.39351115,187.23,187.22,2.02392713]
[1755312276946,3.08,187.22,187.18,2.02392713]
[1755312277255,3.08,187.2,187.17,2.02392713]
[1755312277456,3.08,187.2,187.16,2.02392713]
[1755312278555,3.08,187.18,187.16,2.02392713]
[1755312278854,3.08,187.18,187.16,2.23392713]
[1755312279251,3.08,187.18,187.16,2.02392713]
[1755312280156,3.08,187.18,187.14,0.21]
[1755312280348,3.08,187.18,187.15,2.02392713]
[1755312280553,4.31118747,187.17,187.13,2.02392713]
[1755312280754,3.08,187.16,187.13,2.02392713]
[1755312282855,4.32175444,187.15,187.11,2.02392713]
[1755312283158,3.08,187.13,187.1,2.02392713]
[1755312283553,6.48653722,187.18,187.1,2.02392713]
[1755312283757,3.08,187.16,187.1,2.02392713]
[1755312283956,4.31882928,187.15,187.1,2.02392713]
[1755312284158,3.08,187.13,187.1,2.02392713]
[1755312284356,3.08,187.18,187.12,2.02392713]
[1755312284557,3.08,187.16,187.15,2.02392713]
[1755312287959,3.08,187.16,187.13,2.02392713]
[1755312288161,3.08,187.16,187.11,2.02392713]
[1755312289364,3.08,187.16,187.13,2.02392713]
[1755312289859,2.97,187.16,187.13,2.24392713]
[1755312290058,2.97,187.15,187.13,2.24392713]
[1755312291159,6.48653722,187.21,187.13,2.24392713]
[1755312291359,2.97,187.14,187.13,2.24392713]
[1755312292358,2.97,187.14,187.13,2.02392713]
[1755312292656,2.97,187.14,187.08,3.38481955]
[1755312293265,2.97,187.14,187.09,0.22]
[1755312293461,2.97,187.14,187.08,8.50551955]
[1755312293663,2.97,187.14,187.09,0.22]
[1755312293958,4.46261009,187.2,187.1,0.22]
[1755312294160,2.97,187.18,187.04,230.24]
[1755312294461,2.97,187.16,187.09,8.50541955]
[1755312294660,2.97,187.16,187.1,0.22]
[1755312295059,2.97,187.16,187.11,0.22]
[1755312295261,2.97,187.16,187.12,3.16481955]
[1755312295454,2.97,187.16,187.12,3.38481955]
[1755312295663,2.97,187.16,187.13,0.22]
[1755312295857,2.97,187.21,187.13,0.22]
[1755312296162,2.97,187.19,187.13,0.22]
[1755312296753,2.97,187.19,187.13,5.5594]
[1755312297161,2.97,187.19,187.12,3.16481955]
[1755312297354,2.97,187.19,187.12,8.72461955]
[1755312297764,2.97,187.19,187.12,3.16481955]
[1755312298063,2.97,187.17,187.12,3.16481955]
[1755312298967,2.97,187.17,187.12,3.38481955]
[1755312299567,2.97,187.17,187.13,0.22]
[1755312299769,2.97,187.16,187.14,0.22]
[1755312299960,2.97,187.22,187.14,0.22]
[1755312300166,4.31426715,187.21,187.12,3.16481955]
[1755312300366,2.97,187.19,187.16,0.22]
[1755312300858,4.46261009,187.27,187.21,5.3372]
[1755312301062,4.31517502,187.26,187.22,2.86]
[1755312301264,4.31517502,187.25,187.23,2.86]
[1755312301461,4.46261009,187.3,187.23,2.86]
[1755312301662,363.18261009,187.34,187.25,2.86]
[1755312301864,4.31586129,187.33,187.27,3.16481955]
[1755312302067,4.46261009,187.37,187.29,2.86]
[1755312302261,0.92922658,187.39,187.29,2.86]
[1755312302262,4.31191768,187.36,187.3,3.16481955]
[1755312302463,4.31221166,187.35,187.3,6.02481955]
[1755312302662,4.46261009,187.41,187.33,3.16481955]
[1755312302861,2.97,187.39,187.34,8.1934]
[1755312303064,2.97,187.44,187.37,2.86]
[1755312303366,2.97,187.44,187.39,3.16481955]
[1755312303567,2.97,187.44,187.4,2.86]
[1755312303866,2.97,187.5,187.39,3.16481955]
[1755312304063,2.97,187.48,187.39,3.16481955]
[1755312304265,2.97,187.48,187.33,3.16481955]
[1755312304266,2.97,187.48,187.42,3.16481955]
[1755312304465,2.97,187.48,187.39,3.16481955]
[1755312304867,2.97,187.46,187.36,3.16481955]
[1755312305473,3.16481955,187.46,187.33,6.02481955]
[1755312305672,4.29058434,187.45,187.33,6.02481955]
[1755312305969,2.97,187.44,187.33,6.02481955]